Workbook

Sheet ORÇAMENTO
A1: <---- NUMERAR SERVIÇOS PARA CPU | E1: Ministério do Desenvolvimento Regional
E2: Companhia de Desenvolvimento dos Vales do São Francisco e do Parnaíba
E3: 1ª Superintendência Regional | M3: VALOR SERVIÇO | N3: = | O3: =TRUNC(SUMPRODUCT(H11:H25,I11:I25)+SUMPRODUCT(H27:H38,I27:I38),2) -> 783955.16 | P3: =(L10+L16+L21+L26)/(1+L5) -> 38055.26996
B5: OBRA: | C5: EXECUÇÃO DE RECAPEAMENTO ASFÁLTICO EM CBUQ - ESTRADA MUNICIPAL DA COMUNIDADE OLHOS D'ÁGUA - MONTES CLAROS - MG | J5: BDI Serviços (%): | L5: ='BDI SERV'!E26 -> 24.67
B6: DATA: | C6: JULHO / 2026 | I6: BDI Diferenciado Serviços (%): | L6: ='BDI FORN'!D31 -> 15
B7: PRAZO DE EXECUÇÃO: 150 DIAS | I7: BDI Fornecimentos (%): | L7: ='BDI FORN'!D31 -> 15
B8: PLANILHA DE ORÇAMENTAÇÃO
B9: ITEM | C9: CÓDIGO | D9: FONTE | E9: DISCRIMINAÇÃO | F9: TIPO | G9: UNID. | H9: QUANT. | I9: VR.UNIT.S/BDI | J9: PR. UNIT.C/BDI | K9: C. TOT.S/BDI | L9: P. TOT.C/BDI
A10: A | B10: 1 | E10: SERVIÇOS PRELIMINARES | K10: =SUM(K11:K15) -> 91181.56 | L10: =SUM(L11:L15) -> 113660.3
A11: 1 | B11: 1.1 | C11: CPU.1 | D11: CODEVASF | E11: MOBILIZAÇÃO E DESMOBILIZAÇÃO | F11: SERV | G11: GL | H11: 1 | I11: =VLOOKUP(A11,'CPU-SERV'!A:K,11,0) -> 7066.91 | J11: =TRUNC(_xlfn.IFS(F11="SERV",I11*(1+$L$5/100),F11="SERV DIF",I11*(1+$L$6/100),F11="FORN",I11*(1+$L$7/100)),2) -> 8810.31 | K11: =TRUNC(H11*I11,2) -> 7066.91 | L11: =TRUNC(H11*J11,2) -> 8810.31
A12: 2 | B12: 1.2 | C12: CPU.2 | D12: CODEVASF | E12: ADMINISTRAÇÃO LOCAL | F12: SERV | G12: GL | H12: 1 | I12: =VLOOKUP(A12,'CPU-SERV'!A:K,11,0) -> 74744.98 | J12: =TRUNC(_xlfn.IFS(F12="SERV",I12*(1+$L$5/100),F12="SERV DIF",I12*(1+$L$6/100),F12="FORN",I12*(1+$L$7/100)),2) -> 93184.56 | K12: =TRUNC(H12*I12,2) -> 74744.98 | L12: =TRUNC(H12*J12,2) -> 93184.56
A13: 3 | B13: 1.3 | C13: CPU.3 | D13: CODEVASF | E13: CANTEIRO DE OBRAS | F13: SERV | G13: GL | H13: 1 | I13: =VLOOKUP(A13,'CPU-SERV'!A:K,11,0) -> 7197.85 | J13: =TRUNC(_xlfn.IFS(F13="SERV",I13*(1+$L$5/100),F13="SERV DIF",I13*(1+$L$6/100),F13="FORN",I13*(1+$L$7/100)),2) -> 8973.55 | K13: 7197.85 | L13: 8973.55
A14: 4 | B14: 1.4 | C14: 103689 | D14: SINAPI | E14: PLACA DE OBRA EM CHAPA DE AÇO GALVANIZADO | F14: SERV | G14: M2 | H14: 2 | I14: =VLOOKUP(A14,'CPU-SERV'!A:K,11,0) -> 437.91 | J14: =TRUNC(_xlfn.IFS(F14="SERV",I14*(1+$L$5/100),F14="SERV DIF",I14*(1+$L$6/100),F14="FORN",I14*(1+$L$7/100)),2) -> 545.94 | K14: 875.82 | L14: 1091.88
A15: 5 | B15: 1.5 | C15: 5502985 | D15: SICRO | E15: LIMPEZA MECANIZADA DE CAMADA VEGETAL | F15: SERV | G15: M2 | H15: 1600 | I15: =VLOOKUP(A15,'CPU-SERV'!A:K,11,0) -> 0.81 | J15: =TRUNC(_xlfn.IFS(F15="SERV",I15*(1+$L$5/100),F15="SERV DIF",I15*(1+$L$6/100),F15="FORN",I15*(1+$L$7/100)),2) -> 1 | K15: 1296 | L15: 1600
A16: B | B16: 2 | E16: TERRAPLANAGEM E PAVIMENTAÇÃO | K16: =SUM(K17:K20) -> 276768 | L16: =SUM(L17:L20) -> 345005.5
A17: 10 | B17: 2.1 | C17: 4915656 | D17: SICRO | E17: FRESAGEM CONTÍNUA DE REVESTIMENTO ASFÁLTICO - ESPESSURA ATÉ 4CM | F17: SERV | G17: M3 | H17: 400 | I17: =VLOOKUP(A17,'CPU-SERV'!A:K,11,0) -> 91.31 | J17: =TRUNC(_xlfn.IFS(F17="SERV",I17*(1+$L$5/100),F17="SERV DIF",I17*(1+$L$6/100),F17="FORN",I17*(1+$L$7/100)),2) -> 113.83 | K17: =TRUNC(H17*I17,2) -> 36524 | L17: =TRUNC(H17*J17,2) -> 45532
A18: 11 | B18: 2.2 | C18: 4915631 | D18: SICRO | E18: REMENDO PROFUNDO COM IMPRIMAÇÃO - DEMOLIÇÃO MECÂNICA E CORTE COM SERRA | F18: SERV | G18: M3 | H18: 50 | I18: =VLOOKUP(A18,'CPU-SERV'!A:K,11,0) -> 323.44 | J18: =TRUNC(_xlfn.IFS(F18="SERV",I18*(1+$L$5/100),F18="SERV DIF",I18*(1+$L$6/100),F18="FORN",I18*(1+$L$7/100)),2) -> 403.23 | K18: 16172 | L18: 20161.5
A19: 13 | B19: 2.3 | C19: 4011353 | D19: SICRO | E19: PINTURA DE LIGAÇÃO COM EMULSÃO ASFÁLTICA RR-1C | F19: SERV | G19: M2 | H19: 9600 | I19: =VLOOKUP(A19,'CPU-SERV'!A:K,11,0) -> 0.42 | J19: =TRUNC(_xlfn.IFS(F19="SERV",I19*(1+$L$5/100),F19="SERV DIF",I19*(1+$L$6/100),F19="FORN",I19*(1+$L$7/100)),2) -> 0.52 | K19: 4032 | L19: 4992
A20: 14 | B20: 2.4 | C20: 4011463 | D20: SICRO | E20: EXECUÇÃO DE PAVIMENTO COM APLICAÇÃO DE CONCRETO ASFÁLTICO USINADO A QUENTE (CBUQ), CAMADA DE ROLAMENTO - EXCLUSIVE TRANSPORTE | F20: SERV | G20: T | H20: 1000 | I20: =VLOOKUP(A20,'CPU-SERV'!A:K,11,0) -> 220.04 | J20: =TRUNC(_xlfn.IFS(F20="SERV",I20*(1+$L$5/100),F20="SERV DIF",I20*(1+$L$6/100),F20="FORN",I20*(1+$L$7/100)),2) -> 274.32 | K20: 220040 | L20: 274320
A21: C | B21: 3 | E21: TRANSPORTE DE MATERIAIS | K21: =SUM(K22:K25) -> 76144 | L21: =SUM(L22:L25) -> 94564
A22: 15 | B22: 3.1 | C22: 5915321 | D22: SICRO | E22: TRANSPORTE COM CAMINHÃO BASCULANTE, EM VIA URBANA PAVIMENTADA | F22: SERV | G22: TXKM | H22: 30000 | I22: =VLOOKUP(A22,'CPU-SERV'!A:K,11,0) -> 0.76 | J22: =TRUNC(_xlfn.IFS(F22="SERV",I22*(1+$L$5/100),F22="SERV DIF",I22*(1+$L$6/100),F22="FORN",I22*(1+$L$7/100)),2) -> 0.94 | K22: =TRUNC(H22*I22,2) -> 22800 | L22: =TRUNC(H22*J22,2) -> 28200
A23: 16 | B23: 3.2 | C23: 5914434 | D23: SICRO | E23: TRANSPORTE COM CAMINHÃO CARROCERIA 9T, EM VIA URBANA PAVIMENTADA | F23: SERV | G23: TXKM | H23: 15000 | I23: =VLOOKUP(A23,'CPU-SERV'!A:K,11,0) -> 0.91 | J23: =TRUNC(_xlfn.IFS(F23="SERV",I23*(1+$L$5/100),F23="SERV DIF",I23*(1+$L$6/100),F23="FORN",I23*(1+$L$7/100)),2) -> 1.13 | K23: 13650 | L23: 16950
A24: 17 | B24: 3.3 | C24: 5914612 | D24: SICRO | E24: TRANSPORTE DE MASSA ASFÁLTICA COM CAMINHÃO BASCULANTE, EM VIA URBANA PAVIMENTADA | F24: SERV | G24: TXKM | H24: 40000 | I24: =VLOOKUP(A24,'CPU-SERV'!A:K,11,0) -> 0.98 | J24: =TRUNC(_xlfn.IFS(F24="SERV",I24*(1+$L$5/100),F24="SERV DIF",I24*(1+$L$6/100),F24="FORN",I24*(1+$L$7/100)),2) -> 1.22 | K24: 39200 | L24: 48800
A25: 18 | B25: 3.4 | C25: 5914622 | D25: SICRO | E25: TRANSPORTE COM CAMINHÃO TANQUE DE TRANSPORTE DE MATERIAL ASFÁLTICO DE 30000 L, EM VIA URBANA PAVIMENTADA | F25: SERV | G25: TXKM | H25: 200 | I25: =VLOOKUP(A25,'CPU-SERV'!A:K,11,0) -> 2.47 | J25: =TRUNC(_xlfn.IFS(F25="SERV",I25*(1+$L$5/100),F25="SERV DIF",I25*(1+$L$6/100),F25="FORN",I25*(1+$L$7/100)),2) -> 3.07 | K25: 494 | L25: 614
A26: E | B26: 4 | E26: DRENAGEM E OBRAS COMPLEMENTARES | K26: =SUM(K27:K38) -> 339861.6 | L26: =SUM(L27:L38) -> 423648.98
A27: 19 | B27: 4.1 | C27: 94273 | D27: SINAPI | E27: ASSENTAMENTO DE GUIA (MEIO-FIO) PRÉ-MOLDADO DE CONCRETO - 100X15X13X30 CM (COMPRIMENTO X BASE INFERIOR X BASE SUPERIOR X ALTURA) - USO VIÁRIO | F27: SERV | G27: M | H27: 3200 | I27: =VLOOKUP(A27,'CPU-SERV'!A:K,11,0) -> 39.88 | J27: =TRUNC(_xlfn.IFS(F27="SERV",I27*(1+$L$5/100),F27="SERV DIF",I27*(1+$L$6/100),F27="FORN",I27*(1+$L$7/100)),2) -> 49.71 | K27: =TRUNC(H27*I27,2) -> 127616 | L27: =TRUNC(H27*J27,2) -> 159072
A28: 20 | B28: 4.2 | C28: 94287a | D28: SINAPI | E28: EXECUÇÃO DE SARJETA EM CONCRETO USINADO, MOLDADO IN LOCO - 30CM DE BASE X 5CM DE ALTURA | F28: SERV | G28: M | H28: 3200 | I28: =VLOOKUP(A28,'CPU-SERV'!A:K,11,0) -> 25.6 | J28: =TRUNC(_xlfn.IFS(F28="SERV",I28*(1+$L$5/100),F28="SERV DIF",I28*(1+$L$6/100),F28="FORN",I28*(1+$L$7/100)),2) -> 31.91 | K28: 81920 | L28: 102112
A29: 21 | B29: 4.3 | C29: 4915724 | D29: SICRO | E29: CAIAÇÃO COM FIXADOR DE CAL | F29: SERV | G29: M2 | H29: 1000 | I29: =VLOOKUP(A29,'CPU-SERV'!A:K,11,0) -> 2.25 | J29: =TRUNC(_xlfn.IFS(F29="SERV",I29*(1+$L$5/100),F29="SERV DIF",I29*(1+$L$6/100),F29="FORN",I29*(1+$L$7/100)),2) -> 2.8 | K29: 2250 | L29: 2800
A30: 22 | B30: 4.4 | C30: 2003103 | D30: SICRO | E30: ENTRADA PARA DESCIDA D'ÁGUA - EDA 01 - AREIA E BRITA COMERCIAIS | F30: SERV | G30: UNID. | H30: 30 | I30: =VLOOKUP(A30,'CPU-SERV'!A:K,11,0) -> 200.92 | J30: =TRUNC(_xlfn.IFS(F30="SERV",I30*(1+$L$5/100),F30="SERV DIF",I30*(1+$L$6/100),F30="FORN",I30*(1+$L$7/100)),2) -> 250.48 | K30: 6027.6 | L30: 7514.4
A31: 23 | B31: 4.5 | C31: 2003389 | D31: SICRO | E31: DESCIDA D'ÁGUA DE ATERRO TIPO RÁPIDO - DAR 01 - AREIA E BRITA COMERCIAIS | F31: SERV | G31: M | H31: 90 | I31: =VLOOKUP(A31,'CPU-SERV'!A:K,11,0) -> 238.45 | J31: =TRUNC(_xlfn.IFS(F31="SERV",I31*(1+$L$5/100),F31="SERV DIF",I31*(1+$L$6/100),F31="FORN",I31*(1+$L$7/100)),2) -> 297.27 | K31: 21460.5 | L31: 26754.3
A32: 24 | B32: 4.6 | C32: 2003453 | D32: SICRO | E32: DISSIPADOR DE ENERGIA - DEB 03 - AREIA, BRITA E PEDRA DE MÃO COMERCIAIS | F32: SERV | G32: UNID. | H32: 30 | I32: =VLOOKUP(A32,'CPU-SERV'!A:K,11,0) -> 995.45 | J32: =TRUNC(_xlfn.IFS(F32="SERV",I32*(1+$L$5/100),F32="SERV DIF",I32*(1+$L$6/100),F32="FORN",I32*(1+$L$7/100)),2) -> 1241.02 | K32: 29863.5 | L32: 37230.6
A33: 25 | B33: 4.7 | C33: 2003626 | D33: SICRO | E33: BOCA DE LOBO SIMPLES - GRELHA DE CONCRETO - AREIA E BRITA COMERCIAIS | F33: SERV | G33: UNID. | H33: 6 | I33: =VLOOKUP(A33,'CPU-SERV'!A:K,11,0) -> 982.6 | J33: =TRUNC(_xlfn.IFS(F33="SERV",I33*(1+$L$5/100),F33="SERV DIF",I33*(1+$L$6/100),F33="FORN",I33*(1+$L$7/100)),2) -> 1225 | K33: 5895.6 | L33: 7350
A34: 36 | B34: 4.8 | C34: 2003365 | D34: SICRO | E34: TRANSPOSIÇÃO DE SEGMENTO DE SARJETA - TSS 01 - AREIA E BRITA COMERCIAIS | F34: SERV | G34: M | H34: 12 | I34: =VLOOKUP(A34,'CPU-SERV'!A:K,11,0) -> 1062.2 | J34: =TRUNC(_xlfn.IFS(F34="SERV",I34*(1+$L$5/100),F34="SERV DIF",I34*(1+$L$6/100),F34="FORN",I34*(1+$L$7/100)),2) -> 1324.24 | K34: 12746.4 | L34: 15890.88
A35: 48 | B35: 4.9 | C35: 5213401 | D35: SICRO | E35: PINTURA DE EIXO VIÁRIO SOBRE ASFALTO COM TINTA RETRORREFLETIVA A BASE DE RESINA ACRÍLICA COM MICROESFERAS DE VIDRO, APLICAÇÃO MECÂNICA COM DEMARCADORA AUTOPROPELIDA | F35: SERV | G35: M2 | H35: 700 | I35: =VLOOKUP(A35,'CPU-SERV'!A:K,11,0) -> 28.99 | J35: =TRUNC(_xlfn.IFS(F35="SERV",I35*(1+$L$5/100),F35="SERV DIF",I35*(1+$L$6/100),F35="FORN",I35*(1+$L$7/100)),2) -> 36.14 | K35: 20293 | L35: 25298
A36: 49 | B36: 4.10 | C36: 5213360 | D36: SICRO | E36: TACHA REFLETIVA EM PLÁSTICO INJETADO - BIDIRECIONAL COM UM PINO - FORNECIMENTO E COLOCAÇÃO | F36: SERV | G36: UNID. | H36: 600 | I36: =VLOOKUP(A36,'CPU-SERV'!A:K,11,0) -> 35.94 | J36: =TRUNC(_xlfn.IFS(F36="SERV",I36*(1+$L$5/100),F36="SERV DIF",I36*(1+$L$6/100),F36="FORN",I36*(1+$L$7/100)),2) -> 44.8 | K36: 21564 | L36: 26880
A37: 50 | B37: 4.11 | C37: 5213405 | D37: SICRO | E37: PINTURA DE FAIXA DE PEDESTRE OU ZEBRADA TINTA RETRORREFLETIVA A BASE DE RESINA ACRÍLICA COM MICROESFERAS DE VIDRO, APLICAÇÃO MANUAL | F37: SERV | G37: M2 | H37: 100 | I37: =VLOOKUP(A37,'CPU-SERV'!A:K,11,0) -> 45.3 | J37: =TRUNC(_xlfn.IFS(F37="SERV",I37*(1+$L$5/100),F37="SERV DIF",I37*(1+$L$6/100),F37="FORN",I37*(1+$L$7/100)),2) -> 56.47 | K37: 4530 | L37: 5647
A38: 51 | B38: 0 | C38: 5213440 | D38: SICRO | E38: PLACA DE REGULAMENTAÇÃO EM AÇO - PELÍCULA RETRORREFLETIVA TIPO I + SI - FORNECIMENTO E IMPLANTAÇÃO | F38: SERV | G38: UNID | H38: 20 | I38: =VLOOKUP(A38,'CPU-SERV'!A:K,11,0) -> 284.75 | J38: =TRUNC(_xlfn.IFS(F38="SERV",I38*(1+$L$5/100),F38="SERV DIF",I38*(1+$L$6/100),F38="FORN",I38*(1+$L$7/100)),2) -> 354.99 | K38: =TRUNC(H38*I38,2) -> 5695 | L38: =TRUNC(H38*J38,2) -> 7099.8
A39: F | B39: 5 | E39: FORNECIMENTOS - MATERIAL ASFÁLTICO (BDI DIFERENCIADO) | K39: =SUM(K40:K45) -> 280975.39 | L39: =SUM(L40:L45) -> 323121.22
A40: F1 | B40: 5.1 | C40: CPU.7 | D40: ANP | E40: AQUISIÇÃO DE EMULSÃO ASFÁLTICA PARA IMPRIMAÇÃO (EAI) - EXCLUSIVE TRANSPORTE | F40: FORN | G40: T | H40: 0.5033333333 | I40: =VLOOKUP(A40,'CPU-FORNEC'!A:J,9,0) -> 2592.23 | J40: =TRUNC(_xlfn.IFS(F40="SERV",I40*(1+$L$5/100),F40="SERV DIF",I40*(1+$L$6/100),F40="FORN",I40*(1+$L$7/100)),2) -> 2981.06 | K40: =TRUNC(H40*I40,2) -> 1304.75 | L40: =TRUNC(H40*J40,2) -> 1500.46
A41: F2 | B41: 5.2 | C41: CPU.8 | D41: CODEVASF | E41: TRANSPORTE DE EMULSÃO ASFÁLTICA PARA IMPRIMAÇÃO (EAI) | F41: SERV DIF | G41: T | H41: 0.5033333333 | I41: =VLOOKUP(A41,'CPU-FORNEC'!A:J,9,0) -> 740.26 | J41: =TRUNC(_xlfn.IFS(F41="SERV",I41*(1+$L$5/100),F41="SERV DIF",I41*(1+$L$6/100),F41="FORN",I41*(1+$L$7/100)),2) -> 851.29 | K41: 372.59 | L41: 428.48
A42: F3 | B42: 5.3 | C42: CPU.9 | D42: ANP | E42: AQUISIÇÃO DE EMULSAO ASFALTICA CATIONICA RR-1C - EXCLUSIVE TRANSPORTE | F42: FORN | G42: T | H42: 4.5 | I42: =VLOOKUP(A42,'CPU-FORNEC'!A:J,9,0) -> 2977.88 | J42: =TRUNC(_xlfn.IFS(F42="SERV",I42*(1+$L$5/100),F42="SERV DIF",I42*(1+$L$6/100),F42="FORN",I42*(1+$L$7/100)),2) -> 3424.56 | K42: 13400.46 | L42: 15410.52
A43: F4 | B43: 5.4 | C43: CPU.10 | D43: CODEVASF | E43: TRANSPORTE DE EMULSÃO ASFÁLTICA CATIONICA RR-1C | F43: SERV DIF | G43: T | H43: 4.5 | I43: =VLOOKUP(A43,'CPU-FORNEC'!A:J,9,0) -> 565.02 | J43: =TRUNC(_xlfn.IFS(F43="SERV",I43*(1+$L$5/100),F43="SERV DIF",I43*(1+$L$6/100),F43="FORN",I43*(1+$L$7/100)),2) -> 649.77 | K43: 2542.59 | L43: 2923.96
A44: F5 | B44: 5.5 | C44: CPU.11 | D44: ANP | E44: AQUISIÇÃO DE CONCRETO ASFÁLTICO DE PETRÓLEO - CAP 50/70 - EXCLUSIVE TRANSPORTE | F44: FORN | G44: T | H44: 60 | I44: =VLOOKUP(A44,'CPU-FORNEC'!A:J,9,0) -> 3968.3 | J44: =TRUNC(_xlfn.IFS(F44="SERV",I44*(1+$L$5/100),F44="SERV DIF",I44*(1+$L$6/100),F44="FORN",I44*(1+$L$7/100)),2) -> 4563.54 | K44: 238098 | L44: 273812.4
A45: F6 | B45: 5.6 | C45: CPU.12 | D45: CODEVASF | E45: TRANSPORTE DE CONCRETO ASFÁLTICO DE PETRÓLEO - CAP 50/70 | F45: SERV DIF | G45: T | H45: 60 | I45: =VLOOKUP(A45,'CPU-FORNEC'!A:J,9,0) -> 420.95 | J45: =TRUNC(_xlfn.IFS(F45="SERV",I45*(1+$L$5/100),F45="SERV DIF",I45*(1+$L$6/100),F45="FORN",I45*(1+$L$7/100)),2) -> 484.09 | K45: 25257 | L45: 29045.4
B46: TOTAL GERAL DA OBRA COM BDI | K46: =SUM(K10,K16,K21,K26,K39) -> 1064930.55 | L46: =SUM(L10,L16,L21,L26,L39) -> 1300000

Sheet CPU-SERV
A1: 1 | B1: 1ª/GRD | K1: =J37 -> 7066.91
B2: OBRA: | C2: EXECUÇÃO DE RECAPEAMENTO ASFÁLTICO EM CBUQ - ESTRADA MUNICIPAL DA COMUNIDADE OLHOS D'ÁGUA - MONTES CLAROS - MG
B3: Custo Unitário de Referência | E3: Minas Gerais
E4: Abril/2026 | H4: Produção da equipe | I4: 0.5 | J4: =VLOOKUP(A1,ORÇAMENTO!$A$10:$L$46,7,1) -> GL
B5: CPU.1 | C5: MOBILIZAÇÃO E DESMOBILIZAÇÃO | I5: Valores em reais (R$)
B6: A - EQUIPAMENTOS | D6: Quantidade | E6: Utilização | G6: Custo Horário | J6: Custo
E7: Operativa | F7: Improdutiva | G7: Produtivo | H7: Improdutivo | J7: Horário Total
B8: E9687 | C8: Caminhão carroceria com capacidade de 5 t - 120 kW | D8: 4 | E8: 0.5 | F8: 0.5 | G8: 186.6702 | H8: 69.419 | J8: =D8*(E8*G8+F8*H8) -> 512.1784 | L8: distancia = | M8: 30 | N8: MONTES CLAROS
B9: E9575 | C9: Caminhão basculante com caçamba estanque com capacidade de 14 m³ - 210 kW | D9: 4 | E9: 1 | F9: 0 | G9: 361.291 | H9: 100.3239 | J9: =D9*(E9*G9+F9*H9) -> 1445.164 | L9: Pá carregadeira | P9: ton
H10: Custo horário total de equipamentos | J10: =SUM(J8:J9) -> 1957.3424 | L10: Motoniveladora | O10: 12.47 | P10: ton
B11: B - MÃO DE OBRA | D11: Quantidade | E11: Unidade | G11: Custo Horário | H11: Custo Horário Total | L11: Trator de pneus | P11: ton
B12: P9824 | C12: Servente | D12: 8 | E12: h | G12: 22.6355 | J12: =D12*G12 -> 181.084 | L12: Rolo Compactador | O12: 27 | P12: ton
J13: =D13*G13 -> 0 | L13: Rolo Tandem | O13: 10.4 | P13: ton
D14: Custo horário total de mão de obra | J14: =SUM(J12:J13) -> 181.084 | L14: Retroescavadeira | O14: 6.67 | P14: ton
D15: Custo horário total de execução | J15: =J10+J14 -> 2138.4264 | L15: Fresadora | O15: 15 | P15: ton
D16: Custo unitário de execução | J16: =J15/I4 -> 4276.8528 | L16: MOBILIZAÇÃO + DESMOBILIZAÇÃO DOS EQUIPTOS | O16: =SUM(O9:O15)*M8*2 -> 4292.4 | P16: ton.km
H17: Custo do FIC | J17: 0
H18: Custo do FIT | J18: 0
B19: C - MATERIAL | D19: Quantidade | E19: Unidade | G19: Preço Unitário | H19: Custo Unitário
B20: - | C20: - | E20: - | G20: 0 | J20: =D20*G20 -> 0
B21: - | C21: - | E21: - | G21: 0 | J21: =D21*G21 -> 0
D22: Custo unitário total de material | J22: =SUM(J20:J21) -> 0
B23: D - ATIVIDADES AUXILIARES | D23: Quantidade | E23: Unidade | G23: Custo Unitário | H23: Custo Unitário
B24: 5914640 | C24: Transporte com cavalo mecânico com semirreboque com capacidade de 32 t - rodovia pavimentada | D24: 4292.4 | E24: tkm | G24: 0.65 | J24: =D24*G24 -> 2790.06
B25: - | C25: - | D25: 0 | E25: - | G25: 0 | J25: =D25*G25 -> 0
D26: Custo total de atividades auxiliares | J26: =SUM(J24:J25) -> 2790.06
H27: Subtotal | J27: =J16+J22+J26+J17+J18 -> 7066.9128
B28: E - TEMPO FIXO | D28: Código | E28: Quantidade | F28: Unidade | H28: Custo Unitário | I28: Custo Unitário
B29: - | C29: - | D29: - | F29: - | H29: 0 | J29: =ROUNDDOWN(E29*H29,4) -> 0
B30: - | C30: - | D30: - | F30: - | H30: 0 | J30: =ROUNDDOWN(E30*H30,4) -> 0
D31: Custo unitário total de tempo fixo | J31: =SUM(J29:J30) -> 0
B32: F - MOMENTO DE TRANSPORTE | D32: Quantidade | E32: Unidade | F32: DMT | J32: Custo Unitário
F33: LN | G33: RP | H33: P
B34: - | C34: - | E34: tkm
B35: - | C35: - | E35: tkm
D36: Custo unitário total de transporte
F37: Custo unitário direto total | J37: =TRUNC(J27+J31,2) -> 7066.91
B38: Obs.
A40: 2 | B40: 1ª/GRD | K40: =J81 -> 74744.98
B41: OBRA: | C41: EXECUÇÃO DE RECAPEAMENTO ASFÁLTICO EM CBUQ - ESTRADA MUNICIPAL DA COMUNIDADE OLHOS D'ÁGUA - MONTES CLAROS - MG
B42: Custo Unitário de Referência | E42: Minas Gerais
E43: Abril/2026 | H43: Produção da equipe | I43: 0.3333333333 | J43: =VLOOKUP(A40,ORÇAMENTO!$A$10:$L$46,7,1) -> GL | K43: 3 MESES
B44: CPU.2 | C44: ADMINISTRAÇÃO LOCAL | I44: Valores em reais (R$)
B45: A - EQUIPAMENTOS | D45: Quantidade | E45: Utilização | G45: Custo Horário | J45: Custo
E46: Operativa | F46: Improdutiva | G46: Produtivo | H46: Improdutivo | J46: Horário Total
B47: - | C47: - | G47: 0 | H47: 0 | J47: =D47*(E47*G47+F47*H47) -> 0
B48: - | C48: - | G48: 0 | H48: 0 | J48: =D48*(E48*G48+F48*H48) -> 0
H49: Custo horário total de equipamentos | J49: =SUM(J47:J48) -> 0
B50: B - MÃO DE OBRA | D50: Quantidade | E50: Unidade | G50: Custo Horário | H50: Custo Horário Total
B51: P9812 | C51: Engenheiro - mensalista | D51: 0.2444008135 | E51: mês | G51: 27738.482 | J51: =D51*G51 -> 6779.307567
B52: P9840 | C52: Encarregado geral - mensalista | D52: 1 | E52: mês | G52: 10356.60266 | J52: =D52*G52 -> 10356.60266
B53: P9876 | C53: Técnico de segurança do trabalho - mensalista | D53: 0.5 | E53: mês | G53: 6020.59199 | J53: 3010.295995
B54: P9858 | C54: Laboratorista - mensalista | D54: 0.5 | E54: mês | G54: 4749.50672 | J54: 2374.75336
B55: P9806 | C55: Auxiliar administrativo - mensalista | D55: 0.5 | E55: mês | G55: 3372.48282 | J55: 1686.24141
D56: Custo horário total de mão de obra | J56: =SUM(J51:J55) -> 24207.20099
D57: Custo horário total de execução | J57: =J49+J56 -> 24207.20099
D58: Custo unitário de execução | J58: =J57/I43 -> 72621.60298
H59: Custo do FIC | J59: -
H60: Custo do FIT | J60: -
B61: C - MATERIAL | D61: Quantidade | E61: Unidade | G61: Preço Unitário | H61: Custo Unitário
B62: - | C62: - | D62: 0 | E62: - | G62: 0 | J62: =D62*G62 -> 0
B63: - | C63: - | D63: 0 | E63: - | G63: 0 | J63: 0
D64: Custo unitário total de material | J64: =SUM(J62:J63) -> 0
B65: D - ATIVIDADES AUXILIARES | D65: Quantidade | E65: Unidade | G65: Custo Unitário | H65: Custo Unitário
B66: 14250 | C66: Energia Elétrica | D66: 240 | E66: kwh | G66: 1.2 | J66: =D66*G66 -> 288
B67: 44480 | C67: Tarifa A - Água e Esgoto | D67: 18 | E67: m³ | G67: 22.7 | J67: =D67*G67 -> 408.6
B68: 5212560 | C68: Placa de advertência para sinalização de obras montada em suporte metálico móvel, lado 1,00 m - utilização de 600 ciclos - fornecimento, 01 implantação e 01 retirada diária | D68: 264 | E68: un.dia | G68: 4.27 | J68: =D68*G68 -> 1127.28
B69: Cotação | C69: Telefone | D69: 5 | E69: mês | G69: 59.9 | J69: =D69*G69 -> 299.5
D70: Custo total de atividades auxiliares | J70: =SUM(J66:J69) -> 2123.38
H71: Subtotal | J71: =J58+J64+J70 -> 74744.98298
B72: E - TEMPO FIXO | D72: Código | E72: Quantidade | F72: Unidade | H72: Custo Unitário | I72: Custo Unitário
B73: - | C73: - | D73: - | E73: 0 | F73: t | H73: 0 | J73: =ROUNDDOWN(E73*H73,4) -> 0
B74: - | C74: - | D74: - | E74: 0 | F74: t | H74: 0 | J74: =ROUNDDOWN(E74*H74,4) -> 0
D75: Custo unitário total de tempo fixo | J75: =SUM(J73:J74) -> 0
B76: F - MOMENTO DE TRANSPORTE | D76: Quantidade | E76: Unidade | F76: DMT | J76: Custo Unitário
F77: LN | G77: RP | H77: P
B78: - | C78: - | E78: tkm
B79: - | C79: - | E79: tkm
D80: Custo unitário total de transporte
F81: Custo unitário direto total | J81: =TRUNC(J71+J75,2) -> 74744.98
B82: Obs.
A84: 3 | B84: 1ª/GRD | K84: =J120 -> 7197.85
B85: OBRA: | C85: EXECUÇÃO DE RECAPEAMENTO ASFÁLTICO EM CBUQ - ESTRADA MUNICIPAL DA COMUNIDADE OLHOS D'ÁGUA - MONTES CLAROS - MG
B86: Custo Unitário de Referência | E86: Minas Gerais
E87: Abril/2026 | H87: Produção da equipe | I87: 1 | J87: =VLOOKUP(A84,ORÇAMENTO!$A$10:$L$46,7,1) -> GL
B88: CPU.3 | C88: CANTEIRO DE OBRAS | I88: Valores em reais (R$)
B89: A - EQUIPAMENTOS | D89: Quantidade | E89: Utilização | G89: Custo Horário | J89: Custo
E90: Operativa | F90: Improdutiva | G90: Produtivo | H90: Improdutivo | J90: Horário Total
B91: - | C91: - | G91: 0 | H91: 0 | J91: =D91*(E91*G91+F91*H91) -> 0
B92: - | C92: - | G92: 0 | H92: 0 | J92: =D92*(E92*G92+F92*H92) -> 0
H93: Custo horário total de equipamentos | J93: =SUM(J91:J92) -> 0
B94: B - MÃO DE OBRA | D94: Quantidade | E94: Unidade | G94: Custo Horário | H94: Custo Horário Total
B95: P9824 | C95: Servente | D95: 8 | E95: h | G95: 22.6355 | J95: =D95*G95 -> 181.084
B96: P9808 | C96: Carpinteiro | D96: 8 | E96: h | G96: 28.7549 | J96: =D96*G96 -> 230.0392
D97: Custo horário total de mão de obra | J97: =SUM(J95:J96) -> 411.1232
D98: Custo horário total de execução | J98: =J93+J97 -> 411.1232
D99: Custo unitário de execução | J99: =J98/I87 -> 411.1232
H100: Custo do FIC | J100: -
H101: Custo do FIT | J101: -
B102: C - MATERIAL | D102: Quantidade | E102: Unidade | G102: Preço Unitário | H102: Custo Unitário
B103: M0053 | C103: Tela plástica em polipropileno na cor laranja para tapume - L = 1,2 m | D103: 100 | E103: m | G103: 1.7173 | J103: =D103*G103 -> 171.73
B104: - | C104: - | D104: 0 | E104: - | G104: 0 | J104: =D104*G104 -> 0
D105: Custo unitário total de material | J105: =SUM(J103:J104) -> 171.73
B106: D - ATIVIDADES AUXILIARES | D106: Quantidade | E106: Unidade | G106: Custo Unitário | H106: Custo Unitário
B107: 10775 | C107: Locação de container 2,30 X 6,00 m, alt. 2,50 m, com 1 sanitário, para escritório, completo, sem divisórias internas | D107: 3 | E107: mês | G107: 980 | J107: =D107*G107 -> 2940
B108: 10779 | C108: Locação de container 2,30 X 4,30 m, alt. 2,50 M, p/ sanitário, c/ 5 bacias, 1 lavatório e 4 mictórios | D108: 3 | E108: mês | G108: 1225 | J108: =D108*G108 -> 3675
D109: Custo total de atividades auxiliares | J109: =SUM(J107:J108) -> 6615
H110: Subtotal | J110: =J99+J105+J109 -> 7197.8532
B111: E - TEMPO FIXO | D111: Código | E111: Quantidade | F111: Unidade | H111: Custo Unitário | I111: Custo Unitário
B112: - | C112: - | D112: - | E112: 0 | F112: t | H112: 0 | J112: =ROUNDDOWN(E112*H112,4) -> 0
B113: - | C113: - | D113: - | E113: 0 | F113: t | H113: 0 | J113: =ROUNDDOWN(E113*H113,4) -> 0
D114: Custo unitário total de tempo fixo | J114: =SUM(J112:J113) -> 0
B115: F - MOMENTO DE TRANSPORTE | D115: Quantidade | E115: Unidade | F115: DMT | J115: Custo Unitário
F116: LN | G116: RP | H116: P
B117: - | C117: - | D117: 0 | E117: tkm
B118: - | C118: - | D118: 0 | E118: tkm
D119: Custo unitário total de transporte
F120: Custo unitário direto total | J120: =TRUNC(J110+J114,2) -> 7197.85
B121: Obs.
A123: 4 | B123: 1ª/GRD | K123: =J161 -> 437.91
B124: OBRA: | C124: EXECUÇÃO DE RECAPEAMENTO ASFÁLTICO EM CBUQ - ESTRADA MUNICIPAL DA COMUNIDADE OLHOS D'ÁGUA - MONTES CLAROS - MG
B125: Custo Unitário de Referência | E125: Minas Gerais
E126: Abril/2026 | H126: Produção da equipe | I126: 1 | J126: =VLOOKUP(A123,ORÇAMENTO!$A$10:$L$46,7,1) -> M2
B127: 103689 | C127: PLACA DE OBRA EM CHAPA DE AÇO GALVANIZADO | I127: Valores em reais (R$)
B128: A - EQUIPAMENTOS | D128: Quantidade | E128: Utilização | G128: Custo Horário | J128: Custo
E129: Operativa | F129: Improdutiva | G129: Produtivo | H129: Improdutivo | J129: Horário Total
B130: - | C130: - | G130: 0 | H130: 0 | J130: =D130*(E130*G130+F130*H130) -> 0
B131: - | C131: - | G131: 0 | H131: 0 | J131: =D131*(E131*G131+F131*H131) -> 0
H132: Custo horário total de equipamentos | J132: =SUM(J130:J131) -> 0
B133: B - MÃO DE OBRA | D133: Quantidade | E133: Unidade | G133: Custo Horário | H133: Custo Horário Total
B134: P9824 | C134: Servente | D134: 1.1186 | E134: h | G134: 22.6355 | J134: =D134*G134 -> 25.3200703
B135: P9808 | C135: Carpinteiro | D135: 0.3729 | E135: h | G135: 28.7549 | J135: =D135*G135 -> 10.72270221
D136: Custo horário total de mão de obra | J136: =SUM(J134:J135) -> 36.04277251
D137: Custo horário total de execução | J137: =J132+J136 -> 36.04277251
D138: Custo unitário de execução | J138: =J137/I126 -> 36.04277251
H139: Custo do FIC | J139: -
H140: Custo do FIT | J140: -
B141: C - MATERIAL | D141: Quantidade | E141: Unidade | G141: Preço Unitário | H141: Custo Unitário
B142: M1358 | C142: Sarrafo em madeira de terceira - E = 2,5 cm e L = 5 cm | D142: 6.4166 | E142: m | G142: 2.08 | J142: =D142*G142 -> 13.346528
B143: M1205 | C143: Prego de ferro | D143: 0.0245 | E143: kg | G143: 14.9417 | J143: =D143*G143 -> 0.36607165
B144: M0998 | C144: Madeira estrutural de eucalipto | D144: 0.022608 | E144: m³ | G144: 3070.34 | J144: =D144*G144 -> 69.41424672
B145: 4813 | C145: Placa de obra (para construção civil) em chapa galvanizada *N. 22*, adesivada, de *2,4 X 1,2* m (sem postes para fixação) | D145: 1 | E145: m² | G145: 318.75 | J145: 318.75
D146: Custo unitário total de material | J146: =SUM(J142:J145) -> 401.8768464
B147: D - ATIVIDADES AUXILIARES | D147: Quantidade | E147: Unidade | G147: Custo Unitário | H147: Custo Unitário
B148: - | C148: - | D148: 0 | E148: - | G148: 0 | J148: =D148*G148 -> 0
B149: - | C149: - | D149: 0 | E149: - | G149: 0 | J149: =D149*G149 -> 0
D150: Custo total de atividades auxiliares | J150: =SUM(J148:J149) -> 0
H151: Subtotal | J151: =J138+J146+J150 -> 437.9196189
B152: E - TEMPO FIXO | D152: Código | E152: Quantidade | F152: Unidade | H152: Custo Unitário | I152: Custo Unitário
B153: - | C153: - | D153: - | E153: 0 | F153: t | H153: 0 | J153: =ROUNDDOWN(E153*H153,4) -> 0
B154: - | C154: - | D154: - | E154: 0 | F154: t | H154: 0 | J154: =ROUNDDOWN(E154*H154,4) -> 0
D155: Custo unitário total de tempo fixo | J155: =SUM(J153:J154) -> 0
B156: F - MOMENTO DE TRANSPORTE | D156: Quantidade | E156: Unidade | F156: DMT | J156: Custo Unitário
F157: LN | G157: RP | H157: P
B158: - | C158: - | D158: 0 | E158: tkm
B159: - | C159: - | D159: 0 | E159: tkm
D160: Custo unitário total de transporte
F161: Custo unitário direto total | J161: =TRUNC(J151+J155,2) -> 437.91
B162: Obs.
A164: 5 | B164: 1ª/GRD | K164: =J200 -> 0.81
B165: OBRA: | C165: EXECUÇÃO DE RECAPEAMENTO ASFÁLTICO EM CBUQ - ESTRADA MUNICIPAL DA COMUNIDADE OLHOS D'ÁGUA - MONTES CLAROS - MG
B166: Custo Unitário de Referência | E166: Minas Gerais
E167: Abril/2026 | H167: Produção da equipe | I167: 622.95 | J167: =VLOOKUP(A164,ORÇAMENTO!$A$10:$L$46,7,1) -> M2
B168: 5502985 | C168: LIMPEZA MECANIZADA DE CAMADA VEGETAL | I168: Valores em reais (R$)
B169: A - EQUIPAMENTOS | D169: Quantidade | E169: Utilização | G169: Custo Horário | J169: Custo
E170: Operativa | F170: Improdutiva | G170: Produtivo | H170: Improdutivo | J170: Horário Total
B171: E9540 | C171: Trator sobre esteiras com lâmina - 127 kW | D171: 1 | E171: 1 | F171: 0 | G171: 455.8174 | H171: 179.1817 | J171: =D171*(E171*G171+F171*H171) -> 455.8174
B172: - | C172: - | G172: 0 | H172: 0 | J172: =D172*(E172*G172+F172*H172) -> 0
H173: Custo horário total de equipamentos | J173: =SUM(J171:J172) -> 455.8174
B174: B - MÃO DE OBRA | D174: Quantidade | E174: Unidade | G174: Custo Horário | H174: Custo Horário Total
B175: P9824 | C175: Servente | D175: 1 | E175: h | G175: 22.6355 | J175: =D175*G175 -> 22.6355
B176: - | C176: - | D176: 0 | E176: - | G176: 0 | J176: =D176*G176 -> 0
D177: Custo horário total de mão de obra | J177: =SUM(J175:J176) -> 22.6355
D178: Custo horário total de execução | J178: =J173+J177 -> 478.4529
D179: Custo unitário de execução | J179: =J178/I167 -> 0.7680438237
H180: Custo do FIC | J180: 0.0441
H181: Custo do FIT | J181: 0
B182: C - MATERIAL | D182: Quantidade | E182: Unidade | G182: Preço Unitário | H182: Custo Unitário
B183: - | C183: - | E183: - | G183: 0 | J183: =D183*G183 -> 0
B184: - | C184: - | E184: - | G184: 0 | J184: =D184*G184 -> 0
D185: Custo unitário total de material | J185: =SUM(J183:J184) -> 0
B186: D - ATIVIDADES AUXILIARES | D186: Quantidade | E186: Unidade | G186: Custo Unitário | H186: Custo Unitário
B187: - | C187: - | D187: 0 | E187: - | G187: 0 | J187: =D187*G187 -> 0
B188: - | C188: - | D188: 0 | E188: - | G188: 0 | J188: =D188*G188 -> 0
D189: Custo total de atividades auxiliares | J189: =SUM(J187:J188) -> 0
H190: Subtotal | J190: =J179+J185+J189+J180+J181 -> 0.8121438237
B191: E - TEMPO FIXO | D191: Código | E191: Quantidade | F191: Unidade | H191: Custo Unitário | I191: Custo Unitário
B192: - | C192: - | D192: - | E192: 0 | F192: t | H192: 0 | J192: =ROUNDDOWN(E192*H192,4) -> 0
B193: - | C193: - | D193: - | E193: 0 | F193: t | H193: 0 | J193: =ROUNDDOWN(E193*H193,4) -> 0
D194: Custo unitário total de tempo fixo | J194: =SUM(J192:J193) -> 0
B195: F - MOMENTO DE TRANSPORTE | D195: Quantidade | E195: Unidade | F195: DMT | J195: Custo Unitário
F196: LN | G196: RP | H196: P
B197: - | C197: -
B198: - | C198: -
D199: Custo unitário total de transporte
F200: Custo unitário direto total | J200: =TRUNC(J190+J194,2) -> 0.81
B201: Obs.
A203: 10 | B203: 1ª/GRD | K203: =J241 -> 91.31
B204: OBRA: | C204: EXECUÇÃO DE RECAPEAMENTO ASFÁLTICO EM CBUQ - ESTRADA MUNICIPAL DA COMUNIDADE OLHOS D'ÁGUA - MONTES CLAROS - MG
B205: Custo Unitário de Referência | E205: Minas Gerais
... 884 more rows

Sheet CPU-FORNEC
A1: 1 | B1: CODEVASF | E1: COMPOSIÇÃO DE PREÇO UNITÁRIO | I1: =H24 -> 0 | J1: =H26 -> 0 | K1: BDI CALCULADO: | M1: =ORÇAMENTO!L5 -> 24.67
B2: OBRA: | C2: EXECUÇÃO DE RECAPEAMENTO ASFÁLTICO EM CBUQ - ESTRADA MUNICIPAL DA COMUNIDADE OLHOS D'ÁGUA - MONTES CLAROS - MG | G2: DATA: | H2: =ORÇAMENTO!C6 -> JULHO / 2026 | K2: BDI DIFERENCIADO: | M2: ='BDI FORN'!D31/100 -> 0.15
B3: SERVIÇO: | C3: CPU.1 | E3: Referência: | F3: CODEVASF | G3: UNIDADE: | H3: =VLOOKUP(A1,ORÇAMENTO!A11:L27,5) -> MOBILIZAÇÃO E DESMOBILIZAÇÃO
B5: TIPO ITEM | C5: CODIGO ITEM | D5: DESCRIÇÃO ITEM | E5: UNIDADE ITEM | F5: COEFICIENTE | G5: PRECO UNITARIO | H5: CUSTO TOTAL | J5: distancia = | K5: 90 | L5: B.DESPACHO
B6: EQUIPAMENTOS | J6: Pá carregadeira | M6: 10.1 | N6: ton
C7: E9001 | D7: E9001 | E7: E9001 | G7: E9001
B10: MÃO DE OBRA
B14: MATERIAIS
H17: =ROUNDDOWN(F17*G17,2) -> 0 | J17: Motoniveladora | M17: 12.47 | N17: ton
B18: ATIVIDADES AUXILIARES | J18: Trator de pneus | M18: 2.8 | N18: ton
H19: =ROUNDDOWN(F19*G19,2) -> 0
H20: 0
H21: 0
H22: =ROUNDDOWN(F22*G22,2) -> 0 | J22: Rolo Compactador | M22: 15.33 | N22: ton
B23: PRODUÇÃO DA EQUIPE | E23: 1 | F23: CUSTO | H23: =SUM(H6:H22) -> 0 | J23: Grade de disco | M23: 1 | N23: ton
B24: TOTAL | H24: =H23/E23 -> 0 | I24: OK | J24: RETROESCAVADEIRA | M24: 6.67 | N24: ton
B25: BDI % | H25: =1+$M$1 -> 25.67
B26: TOTAL DO SERVIÇO - R$ | H26: =ROUND(H24*H25,2) -> 0
A28: F1 | B28: CODEVASF | E28: COMPOSIÇÃO DE PREÇO UNITÁRIO | I28: =H35 -> 2592.23 | J28: =H37 -> 2981.06
B29: OBRA: | C29: EXECUÇÃO DE RECAPEAMENTO ASFÁLTICO EM CBUQ - ESTRADA MUNICIPAL DA COMUNIDADE OLHOS D'ÁGUA - MONTES CLAROS - MG | G29: DATA: | H29: =$H$2 -> JULHO / 2026
B30: SERVIÇO: | C30: AQUISIÇÃO DE EMULSÃO ASFÁLTICA PARA IMPRIMAÇÃO (EAI) - EXCLUSIVE TRANSPORTE | E30: FONTE | F30: CPU.7 | G30: UNIDADE: | H30: =VLOOKUP(A28,ORÇAMENTO!$A$11:$L$53,7) -> T
B32: TIPO ITEM | C32: CODIGO ITEM | D32: DESCRIÇÃO ITEM | E32: UNIDADE ITEM | F32: COEFICIENTE | G32: PRECO UNITARIO | H32: CUSTO TOTAL
B33: INSUMO | C33: ANP | D33: EMULSÃO ASFÁLTICA PARA SERVIÇO DE IMPRIMAÇÃO (MEMÓRIA EM ANEXO) | E33: T | F33: 1 | G33: 2592.235081 | H33: =ROUNDDOWN(F33*G33,2) -> 2592.23
B34: PRODUÇÃO DA EQUIPE | E34: 1 | F34: CUSTO | H34: =SUM(H33:H33) -> 2592.23
B35: TOTAL | H35: =H34/E34 -> 2592.23
B36: BDI % | H36: =1+$M$2 -> 1.15
B37: TOTAL DO SERVIÇO - R$ | H37: =ROUND(H35*H36,2) -> 2981.06 | I37: OK
A39: F2 | B39: CODEVASF | E39: COMPOSIÇÃO DE PREÇO UNITÁRIO | I39: =H46 -> 740.26 | J39: =H48 -> 851.3
B40: OBRA: | C40: EXECUÇÃO DE RECAPEAMENTO ASFÁLTICO EM CBUQ - ESTRADA MUNICIPAL DA COMUNIDADE OLHOS D'ÁGUA - MONTES CLAROS - MG | G40: DATA: | H40: =$H$2 -> JULHO / 2026
B41: SERVIÇO: | C41: TRANSPORTE DE EMULSÃO ASFÁLTICA PARA IMPRIMAÇÃO (EAI) | E41: FONTE | F41: CPU.8 | G41: UNIDADE: | H41: =VLOOKUP(A39,ORÇAMENTO!$A$11:$L$53,7) -> T
B43: TIPO ITEM | C43: CODIGO ITEM | D43: DESCRIÇÃO ITEM | E43: UNIDADE ITEM | F43: COEFICIENTE | G43: PRECO UNITARIO | H43: CUSTO TOTAL
B44: INSUMO | C44: - | D44: TRANSPORTE DE EMULSÃO ASFÁLTICA PARA IMPRIMAÇÃO (EAI), INCLUINDO CUSTO TOTAL DO TRANSPORTE (COMBUSTÍVEL, PEDÁGIOS, ETC.) E ICMS - MEMÓRIA ANEXA | E44: T | F44: 1 | G44: 740.26 | H44: =ROUNDDOWN(F44*G44,2) -> 740.26
B45: PRODUÇÃO DA EQUIPE | E45: 1 | F45: CUSTO | H45: =SUM(H44:H44) -> 740.26
B46: TOTAL | H46: =H45/E45 -> 740.26
B47: BDI % | H47: =1+$M$2 -> 1.15
B48: TOTAL DO SERVIÇO - R$ | H48: =ROUND(H46*H47,2) -> 851.3 | I48: OK
A50: F3 | B50: CODEVASF | E50: COMPOSIÇÃO DE PREÇO UNITÁRIO | I50: =H57 -> 2977.88 | J50: =H59 -> 3424.56
B51: OBRA: | C51: EXECUÇÃO DE RECAPEAMENTO ASFÁLTICO EM CBUQ - ESTRADA MUNICIPAL DA COMUNIDADE OLHOS D'ÁGUA - MONTES CLAROS - MG | G51: DATA: | H51: =$H$2 -> JULHO / 2026
B52: SERVIÇO: | C52: AQUISIÇÃO DE EMULSAO ASFALTICA CATIONICA RR-1C - EXCLUSIVE TRANSPORTE | E52: FONTE | F52: CPU.9 | G52: UNIDADE: | H52: =VLOOKUP(A50,ORÇAMENTO!$A$11:$L$53,7) -> T
B54: TIPO ITEM | C54: CODIGO ITEM | D54: DESCRIÇÃO ITEM | E54: UNIDADE ITEM | F54: COEFICIENTE | G54: PRECO UNITARIO | H54: CUSTO TOTAL
B55: INSUMO | C55: ANP | D55: EMULSÃO ASFÁLTICA CATIÔNICA RR-1C(MEMÓRIA EM ANEXO) | E55: T | F55: 1 | G55: 2977.889434 | H55: =ROUNDDOWN(F55*G55,2) -> 2977.88
B56: PRODUÇÃO DA EQUIPE | E56: 1 | F56: CUSTO | H56: =SUM(H55:H55) -> 2977.88
B57: TOTAL | H57: =H56/E56 -> 2977.88 | I57: OK
B58: BDI % | H58: =1+$M$2 -> 1.15
B59: TOTAL DO SERVIÇO - R$ | H59: =ROUND(H57*H58,2) -> 3424.56
A61: F4 | B61: CODEVASF | E61: COMPOSIÇÃO DE PREÇO UNITÁRIO | I61: =H68 -> 565.02 | J61: =H70 -> 649.77
B62: OBRA: | C62: EXECUÇÃO DE RECAPEAMENTO ASFÁLTICO EM CBUQ - ESTRADA MUNICIPAL DA COMUNIDADE OLHOS D'ÁGUA - MONTES CLAROS - MG | G62: DATA: | H62: =$H$2 -> JULHO / 2026
B63: SERVIÇO: | C63: TRANSPORTE DE EMULSÃO ASFÁLTICA CATIONICA RR-1C | E63: FONTE | F63: CPU.10 | G63: UNIDADE: | H63: =VLOOKUP(A61,ORÇAMENTO!$A$11:$L$53,7) -> T
B65: TIPO ITEM | C65: CODIGO ITEM | D65: DESCRIÇÃO ITEM | E65: UNIDADE ITEM | F65: COEFICIENTE | G65: PRECO UNITARIO | H65: CUSTO TOTAL
B66: INSUMO | C66: - | D66: TRANSPORTE DE EMULSÃO ASFÁLTICA CATIONICA TIPO RR-1C, INCLUINDO CUSTO TOTAL DO TRANSPORTE (COMBUSTÍVEL, PEDÁGIOS, ETC.) E ICMS - MEMÓRIA ANEXA | E66: T | F66: 1 | G66: 565.0233333 | H66: =ROUNDDOWN(F66*G66,2) -> 565.02
B67: PRODUÇÃO DA EQUIPE | E67: 1 | F67: CUSTO | H67: =SUM(H66:H66) -> 565.02
B68: TOTAL | H68: =H67/E67 -> 565.02 | I68: OK
B69: BDI % | H69: =1+$M$2 -> 1.15
B70: TOTAL DO SERVIÇO - R$ | H70: =ROUND(H68*H69,2) -> 649.77
A72: F5 | B72: CODEVASF | E72: COMPOSIÇÃO DE PREÇO UNITÁRIO | I72: =H79 -> 3968.3 | J72: =H81 -> 4563.55
B73: OBRA: | C73: EXECUÇÃO DE RECAPEAMENTO ASFÁLTICO EM CBUQ - ESTRADA MUNICIPAL DA COMUNIDADE OLHOS D'ÁGUA - MONTES CLAROS - MG | G73: DATA: | H73: =$H$2 -> JULHO / 2026
B74: SERVIÇO: | C74: AQUISIÇÃO DE CONCRETO ASFÁLTICO DE PETRÓLEO - CAP 50/70 - EXCLUSIVE TRANSPORTE | E74: FONTE | F74: CPU.11 | G74: UNIDADE: | H74: =VLOOKUP(A72,ORÇAMENTO!$A$11:$L$53,7) -> T
B76: TIPO ITEM | C76: CODIGO ITEM | D76: DESCRIÇÃO ITEM | E76: UNIDADE ITEM | F76: COEFICIENTE | G76: PRECO UNITARIO | H76: CUSTO TOTAL
B77: INSUMO | C77: 1518 | D77: CIMENTOS ASFÁLTICO DE PETRÓLEO TIPO CAP 50/70 (MEMÓRIA EM ANEXO) | E77: T | F77: 1 | G77: 3968.303146 | H77: =ROUNDDOWN(F77*G77,2) -> 3968.3
B78: PRODUÇÃO DA EQUIPE | E78: 1 | F78: CUSTO | H78: =SUM(H77:H77) -> 3968.3
B79: TOTAL | H79: =H78/E78 -> 3968.3
B80: BDI % | H80: =1+$M$2 -> 1.15
B81: TOTAL DO SERVIÇO - R$ | H81: =ROUND(H79*H80,2) -> 4563.55
A83: F6 | B83: CODEVASF | E83: COMPOSIÇÃO DE PREÇO UNITÁRIO | I83: =H90 -> 420.95 | J83: =H92 -> 484.09
B84: OBRA: | C84: EXECUÇÃO DE RECAPEAMENTO ASFÁLTICO EM CBUQ - ESTRADA MUNICIPAL DA COMUNIDADE OLHOS D'ÁGUA - MONTES CLAROS - MG | G84: DATA: | H84: =$H$2 -> JULHO / 2026
B85: SERVIÇO: | C85: TRANSPORTE DE CONCRETO ASFÁLTICO DE PETRÓLEO - CAP 50/70 | E85: FONTE | F85: CPU.12 | G85: UNIDADE: | H85: =VLOOKUP(A83,ORÇAMENTO!$A$11:$L$53,7) -> T
B87: TIPO ITEM | C87: CODIGO ITEM | D87: DESCRIÇÃO ITEM | E87: UNIDADE ITEM | F87: COEFICIENTE | G87: PRECO UNITARIO | H87: CUSTO TOTAL
B88: INSUMO | C88: - | D88: TRANSPORTE DE CIMENTO ASFÁLTICO DE PETRÓLEO TIPO CAP 50-70, INCLUINDO CUSTO TOTAL DO TRANSPORTE (COMBUSTÍVEL, PEDÁGIOS, ETC.) E ICMS - MEMÓRIA ANEXA | E88: T | F88: 1 | G88: 420.95 | H88: =ROUNDDOWN(F88*G88,2) -> 420.95
B89: PRODUÇÃO DA EQUIPE | E89: 1 | F89: CUSTO | H89: =SUM(H88:H88) -> 420.95
B90: TOTAL | H90: =H89/E89 -> 420.95
B91: BDI % | H91: =1+$M$2 -> 1.15
B92: TOTAL DO SERVIÇO - R$ | H92: =ROUND(H90*H91,2) -> 484.09

Sheet BDI SERV
B1: DETALHAMENTO DO BDI - SERVIÇOS
B4: Item | C4: Descrição dos Serviços | D4: % - PV | E4: % - CD
B6: 1 | C6: ADMINISTRAÇÃO CENTRAL | E6: 4.01
B7: 1.1 | C7: ESCRITÓRIO CENTRAL | E7: 4.01
B8: 1.2 | C8: VIAGENS
B9: 1.3 | C9: OUTROS
B11: 2 | C11: IMPOSTOS E TAXAS | D11: 8.65 | E11: 0
B12: 2.1 | C12: ISS - Proposta | D12: 5
B13: 2.2 | C13: PIS | D13: 0.65
B14: 2.3 | C14: Cofins | D14: 3
B15: 2.4 | C15: Contribuição Previdenciaria (CPRB)
B17: 3 | C17: TAXA DE RISCO | E17: 0.96
B18: 3.1 | C18: SEGURO | E18: 0.2
B19: 3.2 | C19: RISCO | E19: 0.56
B20: 3.3 | C20: GARANTIA | E20: 0.2
B22: 4 | C22: DESPESAS FINANCEIRAS | E22: 1.11
B24: 5 | C24: LUCRO | E24: 7.3
B26: BDI APRESENTADO: | E26: 24.67
C28: Legislação Municipal: | D28: Lei Complementar nº 004/2005
C29: Município: | D29: Montes Claros
C30: Alíquota ISSQN: | D30: 0.05 | E30: Município
C31: Base de Cálculo: | D31: 1 | E31: Art. 55 § 2º
C32: Valor Serviço: | D32: 783955.16
C33: Dedução - Material: | D33: 0
C34: ISSQN BDI: | D34: 0.05 | E34: (*)
A36: Acórdão nº 2.622/2013 - TCU Plenário
A37: BDI = ARRED((((((1+(AC+TR)/100)*(1+DF/100)*(1+L/100))/(1-IMP/100))-1)*100);2)
B39: (*) É obrigação da licitante a verificação da Legislação Tributária vigente no município, bem como o cálculo dos valores totais de serviços e materiais estimados, para apresentação de sua proposta.
C41: Forma de Cálculo do BDI: | D41: BDI - Acórdão nº 2.622/2013 - TCU
C43: BDI - Digitado | D43: 13.38
C44: BDI - Calculado | D44: 26.21
C45: BDI - Acórdão nº 2.622/2013 - TCU | D45: 24.67
D49: Dedução - Material | E49: Município
D50: 0.1 | E50: Simples Nacional
D51: 0.2 | E51: Municípios Indefinidos
D52: 0.3
D53: 0.4
D54: 0.5
D55: 0.6
D56: 0.7
D57: 0.8
D58: 0.9
D59: 1
D60: Art. 55 § 2º

Sheet BDI FORN
B1: DETALHAMENTO DO BDI - FORNECIMENTO (MATERIAL ASFÁLTICO)
B4: Item | C4: Descrição dos Serviços | D4: % | E4: %
D5: PV | E5: CD
B7: 1 | C7: ADMINISTRAÇÃO CENTRAL | E7: 3.45
B8: 1.1 | C8: ESCRITÓRIO CENTRAL
B9: 1.2 | C9: VIAGENS
B10: 1.3 | C10: OUTROS
B12: 2 | C12: IMPOSTOS E TAXAS | D12: 3.65 | E12: 4.56
B13: 2.1 | C13: ISS (*) | E13: 0
B14: 2.2 | C14: PIS | D14: 0.65 | E14: 0.81
B15: 2.3 | C15: Cofins | D15: 3 | E15: 3.75
B16: 2.4 | C16: CONTRIBUIÇÃO PREVIDENCIÁRIA SOBRE A RENDA BRUTA | D16: 0 | E16: 0
B18: 3 | C18: TAXA DE RISCO | E18: 1.08
B19: 3.1 | C19: SEGURO | E19: 0.24
B20: 3.2 | C20: RISCO | E20: 0.6
B21: 3.3 | C21: GARANTIA | E21: 0.24
B23: 4 | C23: DESPESAS FINANCEIRAS | E23: 0.85
B25: 5 | C25: LUCRO | E25: 5.11
C27: BDI - CALCULADO | E27: 15
A29: BDI = ((1+((AC+S+R+G)/100))x(1+DF/100)x(1+L/100)/(1-I/100)-1)*100
B31: BDI (CALCULADO): | D31: 15 | E31: %
A37: BDI EM CONFORMIDADE COM OS ACÓRDÃOS Nº 2369/2011 e ACÓRDÃO Nº 2.622/2013 - TCU - PLENÁRIO

Sheet CRONOGRAMA
B1: CRONOGRAMA FÍSICO-FINANCEIRO
B2: OBRA: | C2: EXECUÇÃO DE RECAPEAMENTO ASFÁLTICO EM CBUQ - ESTRADA MUNICIPAL DA COMUNIDADE OLHOS D'ÁGUA - MONTES CLAROS - MG | F2: VALOR: | G2: 1300000
F3: PRAZO: | G3: 150 DIAS
B5: ITEM | C5: ETAPAS/DESCRIÇAO | D5: FISICO/ FINANCEIRO | E5: TOTAL ETAPAS | F5: MÊS 1 | G5: MÊS 2 | H5: MÊS 3 | I5: MÊS 4 | J5: MÊS 5 | K5: TOTAL
A6: A | B6: 1 | C6: SERVIÇOS PRELIMINARES | D6: FISICO | E6: 0.0874 | F6: 0.25 | G6: 0.2 | H6: 0.2 | I6: 0.2 | J6: 0.15 | K6: 1
D7: FINANCEIRO | E7: 113660.3 | F7: 28415.08 | G7: 22732.06 | H7: 22732.06 | I7: 22732.06 | J7: 17049.05 | K7: 113660.31
A8: B | B8: 2 | C8: TERRAPLANAGEM E PAVIMENTAÇÃO | D8: FISICO | E8: 0.2654 | F8: 0.25 | G8: 0.2 | H8: 0.2 | I8: 0.2 | J8: 0.15 | K8: 1
D9: FINANCEIRO | E9: 345005.5 | F9: 86251.38 | G9: 69001.1 | H9: 69001.1 | I9: 69001.1 | J9: 51750.83 | K9: 345005.51
A10: C | B10: 3 | C10: TRANSPORTE DE MATERIAIS | D10: FISICO | E10: 0.0727 | F10: 0.2 | G10: 0.2 | H10: 0.2 | I10: 0.2 | J10: 0.2 | K10: 1
D11: FINANCEIRO | E11: 94564 | F11: 18912.8 | G11: 18912.8 | H11: 18912.8 | I11: 18912.8 | J11: 18912.8 | K11: 94563.96
A12: E | B12: 4 | C12: DRENAGEM E OBRAS COMPLEMENTARES | D12: FISICO | E12: 0.3259 | F12: 0.15 | G12: 0.15 | H12: 0.2 | I12: 0.3 | J12: 0.2 | K12: 1
D13: FINANCEIRO | E13: 423648.98 | F13: 63547.35 | G13: 63547.35 | H13: 84729.8 | I13: 127094.69 | J13: 84729.8 | K13: 423648.97
A14: F | B14: 5 | C14: FORNECIMENTOS - MATERIAL ASFÁLTICO (BDI DIFERENCIADO) | D14: FISICO | E14: 0.2486 | F14: 0.1 | G14: 0.2 | H14: 0.3 | I14: 0.2 | J14: 0.2 | K14: 1
D15: FINANCEIRO | E15: 323121.22 | F15: 32312.12 | G15: 64624.24 | H15: 96936.37 | I15: 64624.24 | J15: 64624.24 | K15: 323121.19
B16: TOTAL | D16: FISICO | E16: 1.000000015 | F16: 0.1764913308 | G16: 0.1837058077 | H16: 0.2248554846 | I16: 0.2325883769 | J16: 0.1823590154 | K16: 1.000000015
D17: FINANCEIRO | E17: 1300000 | F17: 229438.73 | G17: 238817.55 | H17: 292312.13 | I17: 302364.89 | J17: 237066.72 | K17: 1300000
B19: OBSERVAÇÕES:
